fUSD/lending_fUSD_20260108
["ID","MTS","AMOUNT","RATE_DAILY","PERIOD"]
[401083975,1767912635549,-150.0,0.00011583,2]
[401083976,1767912635558,-344.30828492,0.00011612,2]
[401083977,1767912635567,-20444.7960315,0.00011612,2]
[401083978,1767912635577,-15118.59810373,0.00011612,2]
[401083979,1767912635586,-1088.0,0.00011638,2]
[401083980,1767912635596,-1088.0,0.00011693,2]
[401083981,1767912635605,-1088.0,0.00011747,2]
[401083982,1767912635615,-742.77,0.00011768,2]
[401083983,1767912635625,-1088.0,0.00011802,2]
[401083984,1767912635635,-1088.0,0.00011857,2]
[401083985,1767912635644,-1088.0,0.00011912,2]
[401083986,1767912635654,-1088.0,0.00011967,2]
[401083987,1767912635663,-1088.0,0.00012021,2]
[401083988,1767912635673,-742.77,0.00012042,2]
[401083989,1767912635682,-1088.0,0.00012076,2]
[401083990,1767912635692,-1088.0,0.00012131,2]
[401083991,1767912635701,-1088.0,0.00012186,2]
[401083992,1767912635711,-300.0,0.00012233,2]
[401083993,1767912635720,-250.0,0.00012233,2]
[401083994,1767912635729,-300.0,0.00012233,2]
[401083995,1767912635739,-252.34656851,0.00012236,2]
[401083996,1767912635748,-195.0,0.00012236,2]
[401083997,1767912635758,-300.0,0.00012236,2]
[401083998,1767912635767,-250.0,0.00012236,2]
[401083999,1767912635776,-195.0,0.00012236,2]
[401084000,1767912635785,-195.0,0.00012238,2]
[401084001,1767912635794,-239.04848774,0.00012239,2]
[401084002,1767912635803,-1088.0,0.00012241,2]
[401084003,1767912635814,-255.0,0.00012275,2]
[401084004,1767912635824,-1088.0,0.00012295,2]
[401084005,1767912635834,-20444.79603141,0.00012311,2]
[401084006,1767912635844,-15118.59810365,0.00012311,2]
[401084007,1767912635855,-742.77,0.00012316,2]
[401084008,1767912635865,-1680.0,0.00012341,2]
[401084009,1767912635874,-1088.0,0.0001235,2]
[401084010,1767912635885,-1088.0,0.00012405,2]
[401084011,1767912635895,-1088.0,0.0001246,2]
[401084012,1767912635905,-1088.0,0.00012514,2]
[401084013,1767912635914,-1093.75099502,0.00012569,2]
[401084014,1767912635925,-742.81,0.0001259,2]
[401084015,1767912635935,-344.3082849,0.0001266,2]
[401084016,1767912635945,-9999.99,0.00012893,2]
[401084017,1767912635955,-3614.02,0.00012893,2]
[401084018,1767912635964,-9999.99,0.00012893,2]
[401084019,1767912635974,-1195.8,0.00012893,2]
[401084020,1767912635983,-1360.8,0.00012893,2]
[401084021,1767912635992,-150.99,0.00012893,2]
[401084022,1767912636002,-462.54,0.00012893,2]
[401084023,1767912636012,-9999.99,0.00012893,2]
[401084024,1767912636021,-1212.07,0.00012893,2]
[401084025,1767912636031,-576.56,0.00012893,2]
[401084026,1767912636040,-168.0044133,0.0001299,2]
[401084027,1767912636049,-1398.68080287,0.00012999,2]
[401084028,1767912636059,-20444.79603141,0.00013009,2]
[401084029,1767912636070,-15118.59810365,0.00013009,2]
[401084030,1767912636079,-160.45,0.00013032,2]
[401084031,1767912636088,-239.04848774,0.00013183,2]
[401084032,1767912636099,-239.04848774,0.00013183,2]
[401084033,1767912636109,-200.0,0.00013207,2]
[401084034,1767912636119,-433.0,0.0001343,2]
[401084035,1767912636128,-13937.25,0.00013508,2]
[401084036,1767912636137,-500.0,0.00013698,2]
[401084037,1767912636146,-550.60903699,0.00013698,2]
[401084038,1767912636155,-261.10675148,0.00013698,2]
[401084039,1767912636164,-640.29,0.00013698,2]
[401084040,1767912636174,-640.29,0.00013698,2]
[401084041,1767912636184,-640.29,0.00013698,2]
[401084042,1767912636193,-640.29,0.00013698,2]
[401084043,1767912636203,-500.0,0.00013698,2]
[401084044,1767912636212,-500.0,0.00013698,2]
[401084045,1767912636221,-500.0,0.00013698,2]
[401084046,1767912636230,-478.33803571,0.00013698,2]
[401084047,1767912636241,-500.0,0.00013698,2]
[401084048,1767912636251,-500.0,0.00013698,2]
[401084049,1767912636261,-500.0,0.00013698,2]
[401084050,1767912636272,-500.0,0.00013698,2]
[401084051,1767912636283,-500.0,0.00013698,2]
[401084052,1767912636294,-386.45682453,0.00013698,2]
[401084053,1767912636303,-510.914429,0.00013698,2]
[401084054,1767912636315,-500.0,0.00013698,2]
[401084055,1767912636323,-500.0,0.00013698,2]
[401084056,1767912636333,-500.0,0.00013698,2]
[401084057,1767912636342,-172.20960609,0.00013698,2]
[401084058,1767912636351,-649.16,0.00013698,2]
[401084059,1767912636360,-649.16,0.00013698,2]
[401084060,1767912636371,-649.16,0.00013698,2]
[401084061,1767912636381,-649.16,0.00013698,2]
[401084062,1767912636392,-649.16,0.00013698,2]
[401084063,1767912636402,-500.0,0.00013698,2]
[401084064,1767912636414,-500.0,0.00013698,2]
[401084065,1767912636423,-500.0,0.00013698,2]
[401084066,1767912636433,-500.0,0.00013698,2]
[401084067,1767912636443,-500.0,0.00013698,2]
[401084068,1767912636454,-500.0,0.00013698,2]
[401084069,1767912636465,-516.50114519,0.00013698,2]
[401084070,1767912636474,-500.0,0.00013698,2]
[401084071,1767912636484,-500.0,0.00013698,2]
[401084072,1767912636494,-500.0,0.00013698,2]
[401084073,1767912636503,-500.0,0.00013698,2]
[401084074,1767912636513,-500.0,0.00013698,2]
[401084075,1767912636522,-500.0,0.00013698,2]
[401084076,1767912636531,-500.0,0.00013698,2]
[401084077,1767912636541,-500.0,0.00013698,2]
[401084078,1767912636550,-500.0,0.00013698,2]
[401084079,1767912636559,-500.0,0.00013698,2]
[401084080,1767912636568,-500.0,0.00013698,2]
[401084081,1767912636579,-500.0,0.00013698,2]
[401084082,1767912636590,-500.0,0.00013698,2]
[401084083,1767912636599,-506.98336707,0.00013698,2]
[401084084,1767912636609,-972.99,0.00013698,2]
[401084085,1767912636619,-972.99,0.00013698,2]
[401084086,1767912636628,-972.99,0.00013698,2]
[401084087,1767912636637,-972.99,0.00013698,2]
[401084088,1767912636646,-972.99,0.00013698,2]
[401084089,1767912636655,-360.93,0.00013699,2]
[401084090,1767912636664,-3548.52,0.00013699,2]
[401084091,1767912636673,-344.3082849,0.00013708,2]
[401084092,1767912636683,-20444.79603141,0.00013708,2]
[401084093,1767912636692,-15118.59810365,0.00013708,2]
[401084094,1767912636702,-500.0,0.00013862,2]
[401084095,1767912636711,-500.0,0.00013862,2]
[401084096,1767912636720,-239.04848774,0.00014126,2]
[401084097,1767912636729,-20444.79603141,0.00014407,2]
[401084098,1767912636738,-15118.59810365,0.00014407,2]
[401084099,1767912636748,-151.0,0.0001447,2]
[401084100,1767912636758,-151.0,0.0001447,2]
[401084101,1767912636767,-151.0,0.0001447,2]
[401084102,1767912636776,-151.0,0.0001447,2]
[401084103,1767912636785,-151.0,0.0001447,2]
[401084104,1767912636794,-151.0,0.0001447,2]
[401084105,1767912636803,-151.0,0.0001447,2]
[401084106,1767912636812,-151.0,0.0001447,2]
[401084107,1767912636822,-151.0,0.0001447,2]
[401084108,1767912636831,-151.0,0.0001447,2]
[401084109,1767912636840,-168.0044133,0.00014662,2]
[401084110,1767912636850,-736.0,0.00014687,2]
[401084111,1767912636859,-250.0,0.00014695,2]
[401084112,1767912636868,-1000.0,0.00014708,2]
[401084113,1767912636877,-344.3082849,0.00014756,2]
[401084114,1767912636887,-500.0,0.00014763,2]
[401084115,1767912636896,-500.0,0.00014763,2]
[401084116,1767912636905,-500.0,0.00014763,2]
[401084117,1767912636915,-165.71915277,0.00014763,2]
[401084118,1767912636926,-500.0,0.00014763,2]
[401084119,1767912636935,-500.0,0.00014763,2]
[401084120,1767912636945,-500.0,0.00014763,2]
[401084121,1767912636954,-500.0,0.00014763,2]
[401084122,1767912636964,-600.1564652,0.00014763,2]
[401084123,1767912636973,-500.0,0.00014763,2]
[401084124,1767912636982,-500.76955814,0.00014763,2]
[401084125,1767912636992,-500.0,0.00014763,2]
[401084126,1767912637001,-529.41435114,0.00014763,2]
[401084127,1767912637012,-500.0,0.00014763,2]
[401084128,1767912637021,-500.0,0.00014763,2]
[401084129,1767912637031,-503.22149194,0.00014763,2]
[401084130,1767912637040,-500.0,0.00014763,2]
[401084131,1767912637049,-591.63836331,0.00014763,2]
[401084132,1767912637058,-500.0,0.00014763,2]
[401084133,1767912637068,-500.0,0.00014763,2]
[401084134,1767912637079,-500.0,0.00014763,2]
[401084135,1767912637088,-165.84452109,0.00014763,2]
[401084136,1767912637098,-500.0,0.00014763,2]
[401084137,1767912637108,-316.35640449,0.00014763,2]
[401084138,1767912637118,-500.0,0.00014763,2]
[401084139,1767912637128,-158.0,0.00014801,2]
[401084140,1767912637139,-8437.59,0.00014939,2]
[401084141,1767912637148,-661.23,0.00015068,2]
[401084142,1767912637159,-20444.79603141,0.00015105,2]
[401084143,1767912637169,-15118.59810365,0.00015105,2]
[401084144,1767912637178,-1000.0,0.00015301,2]
[401084145,1767912637187,-1000.0,0.0001531,2]
[401084146,1767912637196,-1000.0,0.0001531,2]
[401084147,1767912637205,-1000.0,0.0001531,2]
[401084148,1767912637214,-506.30341667,0.0001531,2]
[401084149,1767912637223,-1000.0,0.0001531,2]
[401084150,1767912637233,-1000.0,0.0001531,2]
[401084151,1767912637246,-500.0,0.0001531,2]
[401084153,1767912637255,-1000.0,0.0001531,2]
[401084155,1767912637264,-1000.0,0.0001531,2]
[401084156,1767912637273,-1000.0,0.0001531,2]
[401084157,1767912637284,-500.0,0.0001531,2]
[401084158,1767912637294,-1000.0,0.0001531,2]
[401084159,1767912637303,-456.47073287,0.0001531,2]
[401084161,1767912637315,-1000.0,0.0001531,2]
[401084162,1767912637325,-398.57460821,0.0001531,2]
[401084164,1767912637335,-1000.0,0.00015603,2]
[401084165,1767912637345,-1000.0,0.00015656,2]
[401084166,1767912637354,-1000.0,0.00015666,2]
[401084167,1767912637364,-1000.0,0.00015685,2]
[401084168,1767912637374,-1000.0,0.00015685,2]
[401084169,1767912637383,-1000.0,0.00015778,2]
[401084170,1767912637392,-344.3082849,0.00015804,2]
[401084171,1767912637402,-20444.79603141,0.00015804,2]
[401084172,1767912637411,-15118.59810365,0.00015804,2]
[401084173,1767912637421,-1100.0,0.00015808,2]
[401084174,1767912637432,-3000.0,0.00015808,2]
[401084176,1767912637442,-1000.0,0.00015845,2]
[401084178,1767912637451,-160.45,0.00015851,2]
[401084179,1767912637461,-1500.0,0.00015858,2]
[401084180,1767912637470,-1000.0,0.00015858,2]
[401084181,1767912637479,-1500.0,0.00015858,2]
[401084182,1767912637489,-1500.0,0.00015858,2]
[401084184,1767912637499,-1500.0,0.00015858,2]
[401084186,1767912637509,-1500.0,0.00015858,2]
[401084188,1767912637518,-1500.0,0.00015858,2]
[401084190,1767912637528,-1500.0,0.00015858,2]
[401084192,1767912637537,-1000.0,0.00015858,2]
[401084194,1767912637547,-1000.0,0.00015866,2]
[401084196,1767912637556,-1000.0,0.00015873,2]
[401084198,1767912637566,-1000.0,0.00015976,2]
[401084200,1767912637575,-250.031061,0.00016,2]
[401084202,1767912637584,-1000.0,0.00016003,2]
[401084204,1767912637594,-1000.0,0.00016008,2]
[401084206,1767912637603,-1000.0,0.00016028,2]
[401084208,1767912637613,-1000.0,0.00016031,2]
[401084210,1767912637622,-1252.0,0.00016067,2]
[401084212,1767912637631,-1000.0,0.00016085,2]
[401084213,1767912637641,-500.0,0.00016099,2]
[401084214,1767912637650,-7747.65,0.00016116,2]
[401084215,1767912637662,-1000.0,0.00016126,2]
[401084216,1767912637672,-1000.0,0.00016174,2]
[401084217,1767912637682,-1000.0,0.00016182,2]
[401084218,1767912637691,-1000.0,0.00016239,2]
[401084219,1767912637701,-1000.0,0.00016278,2]
[401084220,1767912637710,-160.43,0.00016293,2]
[401084221,1767912637720,-1000.0,0.00016342,2]
[401084222,1767912637730,-151.0,0.00016397,2]
[401084223,1767912637739,-162.0,0.000164,2]
[401084224,1767912637748,-833.0,0.000164,2]
[401084225,1767912637757,-833.0,0.000164,2]
[401084226,1767912637766,-833.0,0.000164,2]
[401084227,1767912637774,-833.0,0.000164,2]
[401084228,1767912637783,-162.0,0.000164,2]
[401084229,1767912637792,-162.0,0.000164,2]
[401084231,1767912637802,-833.0,0.000164,2]
[401084233,1767912637811,-833.0,0.000164,2]
[401084235,1767912637820,-833.0,0.000164,2]
[401084237,1767912637830,-552.0,0.000164,2]
[401084239,1767912637839,-2000.0,0.00016406,2]
[401084241,1767912637848,-1020.5636209,0.00016406,2]
[401084243,1767912637857,-2000.0,0.00016406,2]
[401084245,1767912637866,-500.0,0.00016406,2]
[401084247,1767912637875,-2000.0,0.00016406,2]
[401084249,1767912637884,-640.29,0.00016437,2]
[401084251,1767912637893,-500.0,0.00016437,2]
[401084253,1767912637903,-150.0,0.00016437,2]
[401084255,1767912637912,-150.0,0.00016438,2]
[401084257,1767912637921,-4391.8,0.00016438,2]
[401084259,1767912637930,-500.0,0.00016438,2]
[401084261,1767912637939,-500.0,0.00016438,2]
[401084263,1767912637948,-500.0,0.00016438,2]
[401084265,1767912637957,-500.0,0.00016438,2]
[401084267,1767912637966,-500.0,0.00016438,2]
[401084269,1767912637975,-500.0,0.00016438,2]
[401084271,1767912637984,-500.0,0.00016438,2]
[401084273,1767912637993,-500.0,0.00016438,2]
[401084275,1767912638002,-500.0,0.00016438,2]
[401084276,1767912638011,-500.0,0.00016438,2]
[401084279,1767912638020,-500.0,0.00016438,2]
[401084281,1767912638030,-500.0,0.00016438,2]
[401084283,1767912638040,-500.0,0.00016438,2]
[401084285,1767912638050,-500.0,0.00016438,2]
[401084287,1767912638059,-500.0,0.00016438,2]
[401084289,1767912638068,-500.0,0.00016438,2]
[401084290,1767912638077,-500.0,0.00016438,2]
[401084292,1767912638086,-500.0,0.00016438,2]
[401084294,1767912638095,-500.0,0.00016438,2]
[401084297,1767912638105,-500.0,0.00016438,2]
[401084299,1767912638114,-500.0,0.00016438,2]
[401084300,1767912638123,-500.0,0.00016438,2]
[401084302,1767912638132,-500.0,0.00016438,2]
[401084305,1767912638142,-500.0,0.00016438,2]
[401084307,1767912638151,-500.0,0.00016438,2]
[401084309,1767912638160,-500.0,0.00016438,2]
[401084311,1767912638170,-500.0,0.00016438,2]
[401084312,1767912638179,-500.0,0.00016438,2]
[401084314,1767912638188,-500.0,0.00016438,2]
[401084317,1767912638197,-500.0,0.00016438,2]
[401084319,1767912638207,-500.0,0.00016438,2]
[401084321,1767912638216,-2486.41560338,0.00016438,2]
[401084323,1767912638225,-2486.41560338,0.00016438,2]
[401084324,1767912638235,-2486.41560338,0.00016438,2]
[401084326,1767912638248,-2486.41560338,0.00016438,2]
[401084329,1767912638257,-2486.41560338,0.00016438,2]
[401084330,1767912638267,-2486.41560338,0.00016438,2]
[401084332,1767912638276,-2486.41560338,0.00016438,2]
[401084334,1767912638286,-2486.41560338,0.00016438,2]
[401084337,1767912638296,-2486.41560338,0.00016438,2]
[401084339,1767912638305,-2486.41560338,0.00016438,2]
[401084341,1767912638316,-2486.41560338,0.00016438,2]
[401084343,1767912638325,-2486.41560338,0.00016438,2]
[401084345,1767912638335,-2486.41560338,0.00016438,2]
[401084346,1767912638344,-2486.41560338,0.00016438,2]
[401084349,1767912638354,-2486.41560338,0.00016438,2]
[401084351,1767912638364,-2486.41560338,0.00016438,2]
[401084353,1767912638373,-2486.41560338,0.00016438,2]
[401084355,1767912638383,-2486.41560338,0.00016438,2]
[401084357,1767912638392,-2486.41560338,0.00016438,2]
[401084359,1767912638402,-2486.41560338,0.00016438,2]
[401084361,1767912638411,-2486.41560338,0.00016438,2]
[401084363,1767912638420,-2486.41560338,0.00016438,2]
[401084365,1767912638429,-2486.41560338,0.00016438,2]
[401084367,1767912638439,-2486.41560338,0.00016438,2]
[401084369,1767912638451,-2486.41560338,0.00016438,2]
[401084370,1767912638460,-2486.41560338,0.00016438,2]
[401084372,1767912638469,-2486.41560338,0.00016438,2]
[401084374,1767912638478,-2486.41560338,0.00016438,2]
[401084376,1767912638487,-2486.41560338,0.00016438,2]
[401084378,1767912638497,-2486.41560338,0.00016438,2]
[401084380,1767912638506,-2486.41560338,0.00016438,2]
[401084382,1767912638516,-2486.41560338,0.00016438,2]
[401084384,1767912638525,-2486.41560338,0.00016438,2]
[401084386,1767912638534,-2486.41560338,0.00016438,2]
[401084388,1767912638545,-2486.41560338,0.00016438,2]
[401084390,1767912638555,-2486.41560338,0.00016438,2]
[401084392,1767912638564,-2486.41560338,0.00016438,2]
[401084395,1767912638574,-2460.04452879,0.00016438,2]
[401084397,1767912638584,-2460.04452879,0.00016438,2]
[401084399,1767912638593,-2460.04452879,0.00016438,2]
[401084401,1767912638603,-2460.04452879,0.00016438,2]
[401084403,1767912638612,-2460.04452879,0.00016438,2]
[401084405,1767912638621,-2460.04452879,0.00016438,2]
[401084407,1767912638631,-2460.04452879,0.00016438,2]
[401084409,1767912638640,-2460.04452879,0.00016438,2]
[401084411,1767912638650,-2460.04452879,0.00016438,2]
[401084412,1767912638659,-2460.04452879,0.00016438,2]
[401084415,1767912638669,-2460.04452879,0.00016438,2]
[401084417,1767912638678,-2460.04452879,0.00016438,2]
[401084419,1767912638688,-2460.04452879,0.00016438,2]
[401084421,1767912638697,-2460.04452879,0.00016438,2]
[401084423,1767912638707,-2460.04452879,0.00016438,2]
[401084425,1767912638717,-2460.04452879,0.00016438,2]
[401084427,1767912638726,-2460.04452879,0.00016438,2]
[401084429,1767912638735,-2460.04452879,0.00016438,2]
[401084431,1767912638745,-2460.04452879,0.00016438,2]
[401084433,1767912638754,-2460.04452882,0.00016438,2]
[401084435,1767912638763,-2460.04452882,0.00016438,2]
[401084437,1767912638772,-2460.04452881,0.00016438,2]
[401084439,1767912638781,-25625.91,0.00016438,2]
[401084441,1767912638790,-661.23,0.00016438,2]
[401084443,1767912638799,-888.0,0.00016438,2]
[401084445,1767912638808,-800.0,0.00016438,2]
[401084447,1767912638817,-1000.0,0.00016464,2]
[401084449,1767912638827,-150.0,0.00016493,2]
[401084451,1767912638836,-157.72323008,0.00016496,2]
[401084452,1767912638845,-20444.79603141,0.00016503,2]
[401084455,1767912638855,-15118.59810365,0.00016503,2]
[401084457,1767912638864,-1000.0,0.0001654,2]
[401084459,1767912638874,-150.0,0.00016548,2]
[401084460,1767912638883,-150.0,0.00016602,2]
[401084462,1767912638893,-1000.0,0.0001662,2]
[401084464,1767912638903,-1000.0,0.00016625,2]
[401084466,1767912638913,-295.08159117,0.00016657,2]
[401084468,1767912638922,-500.0,0.00016691,2]
[401084470,1767912638931,-4391.8,0.00016712,2]
[401084472,1767912638941,-833.0,0.0001672,2]
[401084474,1767912638950,-162.0,0.0001672,2]
[401084476,1767912638959,-833.0,0.0001672,2]
[401084478,1767912638969,-833.0,0.0001672,2]
[401084480,1767912638978,-833.0,0.0001672,2]
[401084482,1767912638987,-1000.0,0.0001672,2]
[401084484,1767912638996,-160.45,0.00016762,2]
[401084486,1767912639005,-1000.0,0.00016798,2]
[401084488,1767912639014,-344.3082849,0.00016852,2]
[401084490,1767912639023,-1000.0,0.0001686,2]
[401084492,1767912639032,-1000.0,0.00016907,2]
[401084494,1767912639041,-1000.0,0.00016931,2]
[401084496,1767912639050,-2500.0,0.00016954,2]
[401084498,1767912639060,-2500.0,0.00016954,2]
[401084500,1767912639069,-2500.0,0.00016954,2]
[401084502,1767912639079,-1000.0,0.00016984,2]
[401084504,1767912639088,-4391.8,0.00016986,2]
[401084506,1767912639097,-4000.0,0.00017,2]
[401084508,1767912639106,-250.0,0.00017,2]
[401084510,1767912639116,-1299.0,0.00017005,2]
[401084512,1767912639125,-4104.0,0.00017007,2]
[401084514,1767912639134,-162.0,0.0001704,2]
[401084516,1767912639143,-162.0,0.0001704,2]
[401084518,1767912639152,-162.0,0.0001704,2]
[401084520,1767912639162,-833.0,0.0001704,2]
[401084522,1767912639171,-162.0,0.0001704,2]
[401084524,1767912639181,-162.0,0.0001704,2]
[401084526,1767912639190,-833.0,0.0001704,2]
[401084528,1767912639199,-162.0,0.0001704,2]
[401084530,1767912639208,-162.0,0.0001704,2]
[401084532,1767912639219,-833.0,0.0001704,2]
[401084534,1767912639228,-162.0,0.0001704,2]
[401084536,1767912639240,-162.0,0.0001704,2]
[401084538,1767912639250,-162.0,0.0001704,2]
[401084540,1767912639260,-162.0,0.0001704,2]
[401084542,1767912639269,-833.0,0.0001704,2]
[401084544,1767912639279,-163.0,0.0001704,2]
[401084546,1767912639288,-3641.87687968,0.00017045,2]
[401084548,1767912639297,-1000.0,0.00017067,2]
[401084549,1767912639306,-157.72323008,0.00017085,2]
[401084551,1767912639318,-1299.0,0.00017098,2]
[401084553,1767912639328,-649.16,0.00017098,2]
[401084556,1767912639337,-577.6208976,0.00017098,2]
[401084558,1767912639348,-972.99,0.00017098,2]
[401084560,1767912639357,-2337.20378785,0.00017099,2]
[401084562,1767912639367,-176.43590763,0.00017099,2]
[401084595,1767912639624,-3286.61912463,0.00017099,2]
[401084597,1767912639635,-4239.57537948,0.00017099,2]
[401084599,1767912639644,-322.6107,0.00017099,2]
[401084601,1767912639654,-201.93286099,0.00017099,2]
[401084603,1767912639664,-151.0,0.00017099,2]
[401084605,1767912639673,-553.64373807,0.00017099,2]
[401084607,1767912639683,-500.0,0.00017099,2]
[401084609,1767912639693,-500.0,0.00017099,2]
[401084611,1767912639703,-500.0,0.00017099,2]
[401084613,1767912639712,-500.0,0.00017099,2]
[401084615,1767912639721,-500.0,0.00017099,2]
[401084617,1767912639731,-500.0,0.00017099,2]
[401084619,1767912639740,-500.0,0.00017099,2]
[401084621,1767912639749,-359.76179104,0.00017099,2]
[401084623,1767912639758,-500.0,0.00017099,2]
[401084625,1767912639768,-500.0,0.00017099,2]
[401084627,1767912639778,-500.0,0.00017099,2]
[401084629,1767912639787,-500.0,0.00017099,2]
[401084631,1767912639796,-500.0,0.00017099,2]
[401084633,1767912639805,-500.0,0.00017099,2]
[401084635,1767912639815,-500.0,0.00017099,2]
[401084637,1767912639825,-1500.0,0.00017099,2]
[401084639,1767912639834,-500.0,0.00017099,2]
[401084641,1767912639844,-500.0,0.00017099,2]
[401084643,1767912639853,-500.0,0.00017099,2]
[401084645,1767912639862,-1500.0,0.00017099,2]
[401084648,1767912639871,-500.0,0.00017099,2]
[401084649,1767912639880,-500.0,0.00017099,2]
[401084652,1767912639890,-1500.0,0.00017099,2]
[401084654,1767912639899,-500.0,0.00017099,2]
[401084656,1767912639909,-1500.0,0.00017099,2]
[401084658,1767912639920,-9211.34798985,0.00017099,2]
[401084660,1767912639929,-500.0,0.00017099,2]
[401084662,1767912639938,-1500.0,0.00017099,2]
[401084664,1767912639948,-500.0,0.00017099,2]
[401084666,1767912639957,-1500.0,0.00017099,2]
[401084668,1767912639966,-250.0,0.00017099,2]
[401084670,1767912639975,-500.0,0.00017099,2]
[401084671,1767912639984,-1500.0,0.00017099,2]
[401084672,1767912639994,-250.0,0.00017099,2]
[401084673,1767912640003,-500.0,0.00017099,2]
[401084674,1767912640013,-1500.0,0.00017099,2]
[401084675,1767912640022,-250.0,0.00017099,2]
[401084676,1767912640032,-151.0,0.00017099,2]
[401084677,1767912640041,-500.0,0.00017099,2]
[401084678,1767912640051,-1500.0,0.00017099,2]
[401084679,1767912640060,-250.0,0.00017099,2]
[401084680,1767912640070,-151.0,0.00017099,2]
[401084681,1767912640079,-151.0,0.00017099,2]
[401084682,1767912640088,-500.0,0.00017099,2]
[401084683,1767912640097,-1500.0,0.00017099,2]
[401084684,1767912640106,-250.0,0.00017099,2]
[401084686,1767912640116,-162.7023203,0.00017099,2]
[401084688,1767912640127,-500.0,0.00017099,2]
[401084690,1767912640136,-1500.0,0.00017099,2]
[401084692,1767912640144,-500.0,0.00017099,2]
[401084694,1767912640154,-250.0,0.00017099,2]
[401084696,1767912640163,-500.0,0.00017099,2]
[401084698,1767912640173,-1500.0,0.00017099,2]
[401084700,1767912640182,-500.0,0.00017099,2]
[401084702,1767912640191,-250.0,0.00017099,2]
[401084704,1767912640200,-500.0,0.00017099,2]
[401084706,1767912640209,-500.0,0.00017099,2]
[401084708,1767912640218,-250.0,0.00017099,2]
[401084710,1767912640227,-500.0,0.00017099,2]
[401084712,1767912640237,-250.0,0.00017099,2]
[401084714,1767912640248,-500.0,0.00017099,2]
[401084716,1767912640257,-250.0,0.00017099,2]
[401084718,1767912640267,-500.0,0.00017099,2]
[401084720,1767912640276,-250.0,0.00017099,2]
[401084722,1767912640287,-500.0,0.00017099,2]
[401084724,1767912640295,-250.0,0.00017099,2]
[401084726,1767912640305,-500.0,0.00017099,2]
[401084728,1767912640317,-500.0,0.00017099,2]
[401084730,1767912640326,-500.0,0.00017099,2]
[401084732,1767912640335,-500.0,0.00017099,2]
[401084734,1767912640344,-500.0,0.00017099,2]
[401084736,1767912640353,-500.0,0.00017099,2]
[401084738,1767912640363,-500.0,0.00017099,2]
[401084740,1767912640372,-500.0,0.00017099,2]
[401084742,1767912640381,-500.0,0.00017099,2]
[401084744,1767912640390,-500.0,0.00017099,2]
[401084746,1767912640400,-500.0,0.00017099,2]
[401084748,1767912640410,-500.0,0.00017099,2]
[401084750,1767912640419,-500.0,0.00017099,2]
[401084752,1767912640428,-500.0,0.00017099,2]
[401084754,1767912640438,-500.0,0.00017099,2]
[401084756,1767912640447,-500.0,0.00017099,2]
[401084758,1767912640456,-260.34840278,0.00017099,2]
[401084761,1767912640465,-500.0,0.00017099,2]
[401084763,1767912640475,-500.0,0.00017099,2]
[401084765,1767912640485,-578.20924308,0.00017099,2]
[401084767,1767912640494,-2000.0,0.00017099,2]
[401084769,1767912640503,-500.0,0.00017099,2]
[401084771,1767912640513,-2000.0,0.00017099,2]
[401084773,1767912640522,-500.0,0.00017099,2]
[401084775,1767912640531,-500.0,0.00017099,2]
[401084777,1767912640540,-2000.0,0.00017099,2]
[401084779,1767912640549,-500.0,0.00017099,2]